bitfinex/quotes_SOLUSD_20240813
["timestamp","ask_amount","ask_price","bid_price","bid_amount"]
[1723528936569,20.0,145.7,145.66,6.8652]
[1723528936770,54.559,145.73,145.68,6.8642]
[1723528937105,31.62,145.71,145.67,17.1618]
[1723528937274,6.8635,145.7,145.64,6.8658]
[1723528937592,6.8635,145.7,145.63,17.1661]
[1723528937593,6.8635,145.7,145.65,6.8657]
[1723528937752,38.483,145.71,145.65,6.8657]
[1723528938277,38.483,145.71,145.66,6.8652]
[1723528938862,6.8635,145.7,145.64,6.8658]
[1723528939261,6.8635,145.7,145.65,6.8657]
[1723528939661,6.8638,145.69,145.63,17.1661]
[1723528939982,6.8643,145.68,145.63,24.0327]
[1723528940283,6.8647,145.68,145.63,24.0327]
[1723528940490,38.4839,145.69,145.64,6.8661]
[1723528944371,31.62,145.71,145.66,17.1627]
[1723528944559,20.0,145.7,145.66,17.1627]
[1723528945060,31.62,145.69,145.63,17.1664]
[1723528945475,31.62,145.69,145.65,6.8654]
[1723528945659,6.8653,145.66,145.61,6.8672]
[1723528945859,1.65626005,145.65,145.59,23.4434]
[1723528946066,26.8655,145.66,145.61,6.8672]
[1723528946673,1.65626005,145.65,145.61,6.8672]
[1723528947259,1.65626005,145.64,145.61,6.8672]
[1723528947974,31.62,145.65,145.62,6.867]
[1723528949260,20.0,145.66,145.63,6.8665]
[1723528949462,20.0,145.66,145.64,17.1655]
[1723528949661,15.8826,145.67,145.65,6.8656]
[1723528950175,15.8826,145.67,145.64,24.0316]
[1723528951293,31.62,145.69,145.64,17.1655]
[1723528951461,31.62,145.69,145.65,6.8656]
[1723528951657,46.729,145.71,145.67,6.8645]
[1723528951968,26.8636,145.7,145.64,24.0312]
[1723528953085,31.62,145.69,145.64,24.0312]
[1723528953288,31.62,145.69,145.64,17.1655]
[1723528953503,31.62,145.69,145.65,6.8657]
[1723528954415,20.0,145.7,145.66,17.1625]
[1723528954607,20.0,145.7,145.67,6.8648]
[1723528954892,15.109,145.71,145.68,6.8642]
[1723528955702,38.482,145.73,145.68,6.8642]
[1723528955898,20.0,145.72,145.68,6.8642]
[1723528956306,26.8624,145.72,145.68,6.8642]
[1723528956492,20.0,145.72,145.7,6.8633]
[1723528956695,15.2483,145.74,145.7,6.8633]
[1723528957500,22.1098,145.74,145.7,6.8633]
[1723528958203,20.0,145.73,145.7,17.1577]
[1723528958401,20.0,145.75,145.71,6.8628]
[1723528958580,21.65626005,145.75,145.71,6.8628]
[1723528959195,20.0,145.75,145.71,6.8628]
[1723528959608,21.65626005,145.75,145.71,6.8628]
[1723528960708,28.51726005,145.75,145.7,24.021]
[1723528961207,28.51726005,145.75,145.7,17.1577]
[1723528961410,26.92990151,145.78,145.74,6.8615]
[1723528961815,33.78960151,145.78,145.73,24.0165]
[1723528962483,6.8607,145.76,145.71,6.8625]
[1723528962693,6.8607,145.76,145.7,17.1584]
[1723528963107,38.4802,145.77,145.72,6.8624]
[1723528964292,31.62,145.77,145.73,6.8619]
[1723528964896,11.17510151,145.78,145.76,6.8601]
[1723528965122,11.17510151,145.78,145.74,17.1531]
[1723528965289,18.03470151,145.78,145.74,24.0146]
[1723528965704,11.17510151,145.78,145.74,24.0146]
[1723528966322,38.4792,145.79,145.74,24.0146]
[1723528966525,20.0,145.78,145.74,24.0146]
[1723528967907,20.0,145.78,145.74,17.1531]
[1723528968107,20.0,145.78,145.75,6.8609]
[1723528968302,20.0,145.79,145.75,6.8609]
[1723528968613,26.8592,145.79,145.74,24.0146]
[1723528969611,1.65626005,145.78,145.74,24.0146]
[1723528969787,26.8592,145.79,145.74,24.0146]
[1723528969983,60.13546005,145.79,145.74,24.0146]
[1723528971931,58.4792,145.79,145.74,24.0146]
[1723528975529,58.4792,145.79,145.74,24.0146]
[1723528977032,51.62,145.79,145.74,17.1531]
[1723528977336,20.0,145.79,145.76,6.8605]
[1723528977505,20.0,145.8,145.76,6.8605]
[1723528977924,32.67,145.8,145.76,6.8605]
[1723528978918,6.8569,145.84,145.77,0.12549]
[1723528979233,12.67,145.84,145.8,6.8586]
[1723528979737,19.5268,145.84,145.79,6.859]
[1723528979901,12.67,145.82,145.75,17.1523]
[1723528980501,12.67,145.82,145.78,6.8596]
[1723528980702,12.67,145.82,145.77,6.86]
[1723528981005,12.67,145.82,145.79,6.859]
[1723528981204,12.67,145.82,145.78,6.8595]
[1723528981399,12.67,145.82,145.77,17.1494]
[1723528981730,12.67,145.82,145.78,6.8595]
[1723528982727,12.67,145.82,145.79,6.8588]
[1723528982941,12.67,145.82,145.8,6.8587]
[1723528983640,15.8504,145.86,145.81,6.8582]
[1723528983810,28.5204,145.86,145.81,6.8582]
[1723528984931,35.3764,145.86,145.81,6.8582]
[1723528985135,15.8504,145.86,145.81,6.8581]
[1723528985330,12.67,145.85,145.81,6.8581]
[1723528989506,12.67,145.85,145.82,6.8576]
[1723528990038,12.67,145.87,145.84,6.8566]
[1723528990211,28.4748,145.89,145.85,17.1408]
[1723528990416,20.0,145.88,145.85,17.1408]
[1723528990637,15.8048,145.89,145.85,23.9967]
[1723528990839,12.67,145.9,145.85,17.1408]
[1723528991235,12.67,145.9,145.86,6.8558]
[1723528992732,20.0,145.89,145.86,6.8558]
[1723528992931,12.67,145.88,145.81,17.1445]
[1723528993108,12.67,145.86,145.81,17.1445]
[1723528993947,12.67,145.86,145.83,6.8572]
[1723528994126,12.67,145.88,145.83,17.1423]
[1723528994333,12.67,145.88,145.86,6.8558]
[1723528994643,12.67,145.88,145.83,17.1423]
[1723528994644,12.67,145.88,145.85,6.8563]
[1723528995248,12.67,145.86,145.83,17.1423]
[1723528995419,1.65626005,145.85,145.82,6.8577]
[1723528995754,12.67,145.86,145.82,6.8577]
[1723528996234,19.5258,145.86,145.81,6.8581]
[1723528996430,12.67,145.82,145.79,6.8587]
[1723528996635,12.67,145.82,145.78,6.8592]
[1723528996832,12.67,145.82,145.77,17.1501]
[1723528997157,12.67,145.82,145.8,6.8586]
[1723528997353,12.67,145.82,145.81,6.8582]
[1723528997646,12.67,145.84,145.82,6.8576]
[1723528997854,12.67,145.84,145.81,6.8581]
[1723528998017,38.5158,145.86,145.81,6.8581]
[1723528998221,20.0,145.85,145.81,6.8581]
[1723528999456,20.0,145.85,145.83,6.8572]
[1723528999757,1.65626005,145.86,145.81,17.1447]
[1723528999924,31.66,145.89,145.86,6.8557]
[1723529000718,15.4233,145.9,145.86,6.8557]
[1723529001062,38.5126,145.93,145.88,6.8549]
[1723529001231,16.1468,145.94,145.9,6.8539]
[1723529001430,16.1468,145.94,145.91,6.8534]
[1723529001938,31.58515909,145.96,145.91,6.8534]
[1723529002251,6.8512,145.96,145.91,6.8534]
[1723529003140,29.34115425,145.98,145.93,17.1311]
[1723529003457,29.34115425,145.98,145.94,6.8519]
[1723529004145,36.19135425,145.98,145.94,6.8519]
[1723529004346,29.34115425,145.98,145.94,6.8519]
[1723529004552,13.25605425,145.98,145.89,52.998]
[1723529004741,13.25605425,145.98,145.97,6.8507]
[1723529004925,13.25605425,145.98,145.96,6.851]
[1723529006424,13.25605425,145.98,145.95,23.9797]
[1723529007553,13.25605425,145.98,145.96,6.851]
[1723529009262,13.25605425,145.98,145.97,6.8507]
[1723529009463,13.25605425,145.98,145.97,7.35266]
[1723529011633,13.25605425,145.98,145.95,17.1281]
[1723529011828,13.25605425,145.98,145.92,6.4542]
[1723529011829,8.50696005,145.97,145.92,30.4397]
[1723529012048,13.25605425,145.98,145.92,30.4397]
[1723529012049,51.76625425,145.98,145.92,30.4397]
[1723529012360,51.76625425,145.98,145.93,6.8525]
[1723529012551,44.91605425,145.98,145.93,6.8525]
[1723529012737,44.91605425,145.98,145.94,6.8519]
[1723529015263,13.25605425,145.98,145.94,17.1293]
[1723529015575,13.25605425,145.98,145.95,0.12549]
[1723529015761,13.25605425,145.98,145.97,6.8507]
[1723529016868,13.25605425,145.98,145.97,6.97619]
[1723529018553,13.25605425,145.98,145.97,8.4716402]
[1723529018758,13.25605425,145.98,145.97,52.35266]
[1723529021861,13.25605425,145.98,145.97,7.22717]
[1723529022041,13.25605425,145.98,145.96,17.1268]
[1723529022372,13.25605425,145.98,145.96,23.9779]
[1723529022766,13.25605425,145.98,145.97,6.8507]
[1723529022986,13.25605425,145.98,145.96,17.1268]
[1723529023653,13.25605425,145.98,145.93,17.1312]
[1723529023860,13.25605425,145.98,145.96,6.8511]
[1723529024060,13.25605425,145.98,145.95,6.8516]
[1723529024259,13.25605425,145.98,145.96,6.8511]
[1723529024468,13.25605425,145.98,145.93,17.1312]
[1723529025051,13.25605425,145.98,145.95,17.1283]
[1723529025252,13.25605425,145.98,145.97,6.8507]
[1723529026652,13.25605425,145.98,145.97,7.10168]
[1723529026856,13.25605425,145.98,145.97,7.22717]
[1723529027081,13.25605425,145.98,145.97,7.10168]
[1723529027244,13.25605425,145.98,145.97,7.35266]
[1723529027672,13.25605425,145.98,145.97,52.35266]
[1723529039295,13.25605425,145.98,145.97,72.35266]
[1723529042290,13.25605425,145.98,145.97,6.8507]
[1723529049392,13.25605425,145.98,145.97,7.10168]
[1723529049786,13.25605425,145.98,145.97,7.35266]
[1723529050718,13.25605425,145.98,145.97,52.35266]
[1723529052977,7.308e-05,145.98,145.97,104.01266]
[1723529053389,0.8299583,146.05,146.04,6.97289]
[1723529053592,0.8299583,146.05,146.04,7.22387]
[1723529053923,0.8299583,146.05,146.04,7.34936]
[1723529054391,0.8299583,146.05,146.04,69.46786]
[1723529055101,0.8299583,146.05,146.04,70.83675555]
[1723529055301,0.8299583,146.05,146.04,69.46786]
[1723529058197,5.83e-05,146.05,146.04,90.8367771]
[1723529059424,5.83e-05,146.05,146.04,122.4967771]
[1723529059593,47.401,146.15,146.11,6.8438]
[1723529059798,15.741,146.15,146.05,0.12549]
[1723529060110,15.741,146.15,146.05,65.50196]
[1723529060714,15.741,146.15,146.07,0.12549]
[1723529060915,15.741,146.15,146.07,45.50196]
[1723529061832,15.741,146.15,146.13,6.8431]
[1723529062291,15.2497,146.19,146.11,0.12549]
[1723529062492,15.2497,146.19,146.12,0.12549]
[1723529062723,15.2497,146.19,146.12,1.87013404]
[1723529062892,15.2497,146.19,146.13,0.12549]
[1723529063241,6.8385,146.23,146.18,6.8408]
[1723529065599,54.7167,146.24,146.19,6.8404]
[1723529065993,6.8385,146.23,146.18,6.8407]
[1723529066204,38.499,146.22,146.17,6.8413]
[1723529066397,31.66,146.22,146.16,23.9454]
[1723529066601,7.6698583,146.2,146.16,17.1037]
[1723529066823,0.8299583,146.2,146.18,6.8408]
[1723529067194,7.6701583,146.2,146.16,23.9455]
[1723529067398,0.8299583,146.2,146.17,6.8412]
[1723529067792,0.8299583,146.2,146.18,6.8408]
[1723529067992,0.8299583,146.2,146.17,6.8412]
[1723529068194,32.4899583,146.2,146.16,17.1037]
[1723529068426,32.4899583,146.2,146.16,23.9454]
[1723529068651,32.4899583,146.2,146.17,6.8412]
[1723529068803,0.8299583,146.2,146.18,6.8408]
[1723529069001,0.8299583,146.2,146.19,6.8404]
[1723529069199,0.8299583,146.2,146.18,6.8408]
[1723529070308,0.8299583,146.2,146.16,17.1037]
[1723529070515,32.4899583,146.2,146.16,17.1037]
[1723529070722,32.4899583,146.2,146.16,23.9451]
[1723529070925,39.3298583,146.2,146.16,23.9455]
[1723529071224,39.3298583,146.2,146.16,17.1037]
[1723529071811,32.4899583,146.2,146.16,23.9451]
[1723529072517,32.4899583,146.2,146.17,6.8412]
[1723529072829,32.4899583,146.2,146.16,23.9454]
[1723529074027,38.5012,146.18,146.13,6.8432]
[1723529074329,38.5018,146.16,146.12,6.8435]
[1723529074512,38.5018,146.16,146.05,53.7604]
[1723529074513,31.66,146.14,146.09,17.1117]
[1723529074699,38.5029,146.14,146.09,23.9564]
[1723529074898,31.66,146.14,146.11,6.8441]
[1723529075135,31.66,146.16,146.11,17.1094]
[1723529075439,31.66,146.16,146.13,23.9504]
[1723529076726,38.5008,146.18,146.13,23.9504]
[1723529076904,20.0,146.17,146.13,23.9504]
[1723529077326,20.0,146.17,146.14,6.8427]
[1723529077501,31.66,146.18,146.14,6.8426]
[1723529078510,38.5009,146.18,146.14,6.8426]
[1723529078724,31.66,146.18,146.14,6.8426]
[1723529078930,31.66,146.18,146.15,6.8422]
[1723529080715,31.66,146.18,146.14,6.8426]
[1723529081234,1.65626005,146.18,146.12,0.12549]
[1723529081411,15.0417,146.19,146.16,6.8413]
[1723529081611,15.0417,146.19,146.16,6.8417]
[1723529081809,15.0417,146.19,146.15,17.1048]
[1723529081810,16.69796005,146.19,146.15,23.947]
[1723529082117,15.0417,146.19,146.15,23.947]
[1723529082703,15.0417,146.19,146.04,8.19657539]
[1723529082908,31.66,146.18,146.06,20.0]
[1723529083538,6.8418,146.16,146.12,6.8432]
[1723529083747,6.8418,146.16,146.11,6.844]
[1723529083915,8.49856005,146.15,146.1,6.8445]
[1723529084244,31.66,146.18,146.14,6.8427]
[1723529085150,38.5009,146.18,146.13,6.8431]
[1723529085313,31.66,146.18,146.11,17.1093]
[1723529085515,31.66,146.14,146.08,17.1135]
[1723529085716,18.27736005,146.13,146.08,23.959]
[1723529085934,38.504,146.12,146.07,6.846]
[1723529086136,38.505,146.1,146.05,17.1173]
[1723529086341,31.66,146.1,146.02,17.1208]
[1723529086649,38.5056,146.08,146.02,17.1208]
[1723529086853,31.66,146.08,146.02,17.1208]
[1723529087140,31.66,146.1,146.05,17.1172]
[1723529087438,6.8455,146.09,146.03,6.8474]
[1723529087812,38.5046,146.1,146.05,6.8469]
[1723529088040,31.66,146.1,146.06,6.8464]
[1723529088232,31.66,146.1,146.05,6.8468]
[1723529088736,31.66,146.1,146.06,6.8464]
[1723529088938,31.66,146.1,146.07,6.8459]
[1723529089130,31.66,146.12,145.99,31.78549]
[1723529089335,20.0,146.11,146.0,65.37647]
[1723529089844,20.0,146.11,146.01,0.12549]
[1723529090234,20.0,146.11,146.08,6.8454]
[1723529090413,20.0,146.11,146.07,6.8459]
[1723529090618,31.66,146.1,146.01,0.12549]
[1723529090823,38.505,146.1,146.04,17.1182]
[1723529091114,31.66,146.1,146.06,6.8463]
[1723529091542,31.66,146.1,146.04,17.1182]
[1723529091543,33.31626005,146.1,146.07,6.8459]
[1723529091745,33.31626005,146.1,146.05,6.8465]
[1723529092736,33.31626005,146.1,146.06,6.8463]
[1723529093524,31.66,146.1,146.06,6.8463]
[1723529093854,16.6211,146.13,146.05,0.25098]
[1723529094024,16.6211,146.13,146.07,0.12549]
[1723529094347,16.6211,146.13,146.08,0.12549]
[1723529094641,16.6211,146.13,146.12,6.8436]
[1723529094855,31.66,146.16,146.13,6.8429]
[1723529095152,15.8279,146.17,146.08,0.37647]
[1723529095153,15.8279,146.17,146.14,6.8424]
[1723529095933,15.8279,146.17,146.13,6.8431]
[1723529096135,22.6695,146.17,146.12,23.9518]
[1723529096825,15.8279,146.17,146.12,17.1082]
[1723529097142,15.8279,146.17,146.08,0.37647]
[1723529097326,15.8279,146.17,146.16,6.8418]
[1723529098764,32.4899583,146.2,146.16,6.8418]
[1723529099538,0.8299583,146.2,146.17,6.8412]
[1723529099741,0.8299583,146.2,146.18,6.8406]
[1723529100462,40.98621835,146.2,146.16,17.1035]
[1723529100626,6.8416,146.17,146.13,17.1077]
[1723529101151,38.5009,146.18,146.13,17.1077]
[1723529101319,31.66,146.18,146.14,6.8427]
[1723529101854,31.66,146.16,146.13,23.9508]
[1723529102235,31.66,146.16,146.13,17.1077]
[1723529102632,1.65626005,146.15,146.13,17.1077]
[1723529103044,1.65626005,146.15,146.11,6.844]
[1723529103227,1.65626005,146.14,146.11,6.844]
[1723529103435,16.4284,146.13,146.1,17.1115]
[1723529103834,16.4284,146.13,146.12,6.8436]
[1723529104131,16.4284,146.13,146.11,6.844]
[1723529105047,48.0884,146.13,146.07,17.1148]
[1723529105223,1.65626005,146.12,146.08,6.8451]
[1723529105430,1.65626005,146.12,146.09,6.845]
[1723529105930,48.0884,146.13,146.09,6.845]
[1723529106141,1.65626005,146.12,146.09,6.845]
[1723529107652,1.65626005,146.12,146.1,6.8445]
[1723529108574,48.0884,146.13,146.1,6.8445]
[1723529109847,48.0884,146.13,146.11,6.8441]
[1723529110247,48.0884,146.13,146.12,6.8436]
[1723529110633,31.66,146.17,146.14,6.8427]
[1723529110833,20.0,146.16,146.14,6.8427]
[1723529111132,31.66,146.15,146.08,17.1136]
[1723529111353,31.66,146.13,146.08,17.1136]
[1723529111550,18.13326005,146.12,146.08,17.1136]
[1723529111757,31.66,146.11,146.08,17.1136]
[1723529112147,31.66,146.11,146.08,23.9591]
[1723529112447,1.65626005,146.1,146.08,17.1136]
[1723529112661,31.66,146.09,146.06,6.8464]
[1723529115542,1.65626005,146.08,146.05,17.1169]
[1723529115750,33.31626005,146.07,146.04,6.8472]
[1723529116066,6.8483,146.03,145.96,17.1277]
[1723529116276,6.8499,145.99,145.93,23.9832]
[1723529116569,28.50666005,145.98,145.93,23.9836]
[1723529116747,21.65626005,145.98,145.93,23.9836]
[1723529117162,28.50646005,145.98,145.93,23.9836]
[1723529117466,20.0,145.98,145.93,17.1311]
[1723529117761,31.66,146.01,145.96,17.1278]
[1723529117969,20.0,146.0,145.96,17.1278]
[1723529118139,6.1344,146.04,146.01,6.8487]
[1723529118335,47.5831,146.06,146.02,6.8483]
[1723529118561,47.5831,146.06,146.03,6.8477]
[1723529118741,15.9231,146.06,146.03,6.8477]
[1723529119286,37.8002,146.08,145.96,22.3799]
[1723529119435,37.8002,146.08,145.97,65.50196]
[1723529119755,37.8002,146.08,146.04,6.8473]
[1723529119947,6.1402,146.08,146.04,6.8473]
[1723529120143,15.872,146.1,146.04,17.1184]
[1723529120535,15.872,146.1,146.08,6.8453]
[1723529120737,15.872,146.1,146.07,6.8459]
[1723529120947,17.52826005,146.1,146.03,0.37647]
[1723529121177,17.52826005,146.1,146.04,0.25098]
[1723529121474,24.37326005,146.1,146.04,7.09798]
[1723529121664,22.717,146.1,146.05,6.8468]
[1723529121864,15.872,146.1,146.06,6.846]
[1723529122872,22.7166,146.1,146.05,23.9633]
[1723529124678,22.7166,146.1,146.06,6.8464]
[1723529125181,15.872,146.1,146.06,6.8464]
[1723529126589,39.45,146.11,146.05,17.1165]
[1723529126769,6.8433,146.13,146.08,6.8455]
[1723529126970,8.49996005,146.12,146.07,6.8459]
[1723529127293,6.8446,146.1,146.05,17.1165]
[1723529128185,26.8442,146.11,146.06,6.8464]
[1723529128562,20.0,146.11,146.08,6.8451]
[1723529128759,20.0,146.12,146.09,6.845]
[1723529128985,20.0,146.13,146.07,17.114]
[1723529129181,26.8433,146.13,146.08,6.8454]
[1723529129481,46.2938,146.12,146.07,23.96]
[1723529130387,46.2938,146.12,146.08,6.8455]
[1723529130586,39.45,146.12,146.08,6.8455]
[1723529131857,20.0,146.13,146.1,6.8445]
[1723529132061,20.0,146.14,146.1,6.8445]
[1723529132780,20.0,146.14,146.07,17.114]
[1723529133079,46.294,146.12,146.07,23.9599]
[1723529134394,46.294,146.12,146.08,6.8455]
[1723529135191,46.294,146.12,146.07,23.96]
[1723529135482,46.2937,146.12,146.07,17.114]
[1723529135668,46.2937,146.12,146.08,6.8455]
[1723529135865,39.45,146.12,146.07,23.9599]
[1723529136073,1.65626005,146.11,146.05,6.8469]
[1723529136273,1.65626005,146.1,146.05,6.8469]
[1723529136469,6.8445,146.11,146.06,6.8464]
[1723529136662,1.65626005,146.1,146.06,6.8464]
[1723529136859,6.8445,146.11,146.06,6.8464]
[1723529138182,6.8445,146.11,146.07,6.8459]
[1723529138582,46.2938,146.12,146.08,6.8455]
[1723529138785,39.45,146.12,146.08,6.8455]
[1723529139163,26.8428,146.14,146.09,17.1126]
[1723529139358,26.8428,146.14,146.09,23.9575]
[1723529139685,8.49946005,146.13,146.09,23.9575]
[1723529139880,40.03946005,146.13,146.09,23.9575]
[1723529140081,38.3832,146.13,146.09,23.9575]
[1723529141487,31.54,146.11,146.05,17.1163]
[1723529142371,1.65626005,146.1,146.06,6.8461]
[1723529143085,38.3851,146.09,146.05,17.1163]
[1723529143298,1.65626005,146.08,146.05,17.1163]
[1723529143879,1.65626005,146.07,146.02,17.1203]
[1723529144693,1.65626005,146.07,146.01,6.8487]
[1723529144694,31.54,146.05,146.01,6.8487]
[1723529144890,33.19626005,146.05,146.01,6.8487]
[1723529145096,1.65626005,146.04,145.99,17.1238]
[1723529145300,1.65626005,146.04,145.97,6.8503]
[1723529145586,31.54,146.02,145.97,6.8503]
[1723529145795,31.54,145.98,145.92,17.1317]
[1723529145992,31.54,145.98,145.94,6.8519]
[1723529145993,1.65626005,145.97,145.94,6.8519]
[1723529146181,31.54,145.96,145.93,6.8525]
[1723529146878,31.54,145.96,145.94,6.8519]
[1723529147297,33.19626005,145.96,145.92,17.1317]
[1723529147504,1.65626005,145.95,145.92,23.9846]
[1723529148295,21.65626005,145.95,145.9,6.8536]
[1723529148472,21.65626005,145.95,145.91,6.8533]
[1723529148675,20.0,145.95,145.91,6.8533]
[1723529149625,31.54,145.96,145.94,6.852]
[1723529149770,20.0,145.95,145.91,17.1329]
[1723529150105,20.0,145.95,145.92,6.8529]
[1723529150597,20.0,145.97,145.93,6.8525]
[1723529151013,20.0,145.97,145.93,17.1306]
[1723529151199,20.0,145.97,145.95,6.8516]
[1723529151401,20.0,145.97,145.93,17.1306]
[1723529151608,20.0,145.97,145.94,6.852]
[1723529151916,21.65626005,145.97,145.93,17.1306]
[1723529152093,20.0,145.97,145.93,23.983]
[1723529152496,20.0,145.97,145.93,17.1306]
[1723529153393,21.65626005,145.97,145.93,17.1306]
[1723529153613,20.0,145.97,145.93,17.1306]
[1723529153797,20.0,145.97,145.93,23.9831]
[1723529154006,21.65626005,145.97,145.93,23.9831]
[1723529154526,26.8508,145.97,145.93,17.1306]
[1723529154837,33.19626005,145.96,145.93,17.1306]
[1723529154990,1.65626005,145.95,145.91,6.8534]
[1723529155395,6.8517,145.95,145.9,23.9886]
[1723529155927,31.54,145.96,145.9,17.1347]
[1723529156927,31.54,145.96,145.92,6.8529]
[1723529157425,6.8526,145.93,145.88,6.8545]
[1723529157722,31.54,145.94,145.87,17.138]
[1723529158429,31.54,145.94,145.9,6.8535]
[1723529158625,38.3921,145.94,145.9,6.8535]
[1723529159325,38.3921,145.94,145.89,23.9895]
[1723529159829,38.3921,145.94,145.9,6.8539]
[1723529160020,31.54,145.94,145.9,6.8539]
[1723529160533,31.54,145.92,145.86,17.1392]
[1723529160914,38.3934,145.92,145.86,17.1392]
[1723529161830,31.54,145.92,145.88,6.8548]
[1723529162037,31.54,145.92,145.89,6.8544]
[1723529162329,31.54,145.92,145.88,6.8548]
[1723529163429,31.54,145.92,145.87,6.8553]
[1723529163633,8.50986005,145.91,145.86,23.995]
[1723529163926,31.54,145.9,145.86,23.995]
[1723529164308,40.05036005,145.9,145.86,17.1392]
[1723529164706,38.3952,145.88,145.83,6.8568]
[1723529164940,1.65626005,145.87,145.83,6.8568]
[1723529165231,6.8564,145.85,145.8,6.8583]
[1723529165433,31.54,145.84,145.76,13.19760518]
[1723529165634,31.54,145.84,145.76,6.0839]
[1723529166224,31.54,145.84,145.8,6.8586]
[1723529166537,31.54,145.84,145.7,31.54]
[1723529166538,31.54,145.82,145.79,17.1478]
[1723529166715,31.54,145.82,145.76,17.1514]
[1723529167055,31.54,145.82,145.78,6.8592]
[1723529167340,31.54,145.82,145.79,6.8591]
[1723529167543,31.54,145.84,145.8,6.8586]
[1723529167864,31.54,145.84,145.79,17.1478]
[1723529168022,6.3497,145.86,145.79,17.1478]
[1723529168023,37.8897,145.86,145.79,17.1478]
[1723529168223,20.0,145.85,145.82,6.8573]
[1723529168618,20.0,145.85,145.81,24.0026]
[1723529169831,20.0,145.85,145.82,6.8576]
[1723529170742,6.8556,145.87,145.82,6.8577]
[1723529171047,26.8559,145.86,145.81,24.0026]
[1723529171245,26.8559,145.86,145.82,6.8577]
[1723529171461,20.0,145.86,145.82,6.8577]
[1723529171746,20.0,145.86,145.83,6.8572]
[1723529172048,20.0,145.87,145.83,6.8572]
[1723529172729,1.65626005,145.86,145.82,6.8576]
[1723529173033,6.8559,145.86,145.81,24.0025]
[1723529173228,1.65626005,145.85,145.81,24.0025]
[1723529173415,38.3959,145.86,145.81,24.0025]
[1723529173815,31.54,145.86,145.82,6.8576]
[1723529174218,38.3959,145.86,145.82,6.8576]
[1723529174545,38.3959,145.86,145.81,24.0026]
[1723529174737,38.3959,145.86,145.82,6.8577]
[1723529174934,31.54,145.86,145.82,6.8577]
[1723529175257,20.0,145.87,145.83,6.8571]
[1723529176644,26.8555,145.87,145.82,6.8576]
[1723529176842,20.0,145.87,145.83,6.8572]
[1723529177216,26.8554,145.87,145.82,6.8576]
[1723529178324,31.54,145.86,145.81,17.1445]
[1723529178527,8.51296005,145.85,145.81,17.1445]
[1723529178842,1.65626005,145.85,145.81,24.0026]
[1723529179150,6.8569,145.84,145.8,6.8586]
[1723529179347,1.65626005,145.85,145.81,6.858]
[1723529180649,1.65626005,145.84,145.8,17.1461]
[1723529180867,33.19626005,145.84,145.79,6.8591]
[1723529181521,31.54,145.84,145.79,6.8591]
[1723529181748,31.54,145.84,145.8,6.8586]
[1723529182937,31.54,145.84,145.81,6.8578]
[1723529183319,31.54,145.84,145.8,6.8586]
[1723529184321,31.54,145.84,145.81,6.858]
[1723529184544,1.65626005,145.83,145.81,6.858]
[1723529184734,31.54,145.84,145.8,6.8586]
[1723529185237,31.54,145.84,145.81,6.8581]
[1723529185437,1.65626005,145.83,145.81,6.8581]
[1723529185757,1.65626005,145.83,145.8,6.8586]
[1723529187833,1.65626005,145.83,145.81,6.8582]
[1723529188340,1.65626005,145.82,145.8,6.8586]